Cogmind - Beta 11.1 @@@ ROGUE MODE // 2022.04.29 @ 12:19:23 Player: ktur Result: Self-destructed Performance ------------- Evolutions (3) 1500 Regions Visited (6) 1200 Robots Destroyed (87) 435 Value Destroyed (2555) 2555 Prototype IDs (10) 200 Alien Tech Used (0) 0 Bonus (92) 92 TOTAL SCORE: 5982 Bonus ------- High Alert Combat Kills 71 Follower Combat Kills 21 Cogmind --------- Core Integrity 265/700 Matter 250/300 Energy 14/100 System Corruption 0% Temperature Cool (0) Movement Hovering (48) Location -7/Factory Parts ------- > --- POWER (1) -------- (None) > --- PROPULSION (4) --- Improved Hover Unit Airjet Improved Airjet > --- UTILITY (6) ------ Large Storage Unit Advanced Sensor Array Improved Signal Interpreter Hacking Suite Hacking Suite System Shield > --- WEAPON (2) ------- (None) > --- INVENTORY (15) --- Micro Nuclear Core High-capacity Matter Pod (200) Transmission Jammer Advanced ECM Suite Improved Propulsion Shielding Improved Propulsion Shielding Improved Utility Shielding Hacking Suite System Shield Authchip [Propulsion] Authchip [Processor] Authchip [Processor] Mini Grenade Launcher Heavy Rocket Launcher Datajack Peak State ------------ > --- POWER ------------ Micro Nuclear Core > --- PROPULSION ------- Improved Hover Unit Improved Hover Unit Improved Airjet Improved Airjet > --- UTILITY ---------- Large Storage Unit Advanced Sensor Array Improved Signal Interpreter Hacking Suite Hacking Suite System Shield > --- WEAPON ----------- Greatsword > --- INVENTORY -------- Backup Propulsion I Airjet High-capacity Storage Unit High-capacity Matter Pod Core Analyzer Transmission Jammer Advanced ECM Suite Improved Utility Shielding Hardened Medium Armor Plating System Shield System Shield Authchip [Processor] Mini Grenade Launcher Heavy Rocket Launcher Datajack [Rating: 48] Favorites ----------- Power Ion Engine Engine Ion Engine Power Core Micro Nuclear Core Propulsion Light Treads Treads Light Treads Hover Unit Improved Airjet Flight Unit Cooled VTOL Module Utility Large Storage Unit Device Improved Heat Sink Storage Large Storage Unit Processor Improved Signal Interpreter Hackware Hacking Suite Protection Light Armor Plating Weapon Heavy Assault Rifle Energy Gun Medium Laser Energy Cannon Advanced Beam Cannon Ballistic Gun Heavy Assault Rifle Ballistic Cannon Assault Cannon Launcher Improved Grenade Launcher Impact Weapon Maul Slashing Weapon Greatsword Piercing Weapon Spear Build | -11 -10 -10 -10 -9 -8 -7 ------- Run | Scr Mat Min Exi Min Mat Fac Slots Evolved 6 | . . . . . 4 2 Power . | . . . . . . . Propulsion 2 | . . . . . 1 1 Utility 4 | . . . . . 3 1 Weapon . | . . . . . . . Parts Attached 108 | 5 14 1 . . 29 59 Power 6 | 1 1 . . . 1 3 Engine 4 | 1 1 . . . 1 1 Core 2 | . . . . . . 2 Reactor . | . . . . . . . Propulsion 47 | 1 6 . . . 12 28 Treads 18 | 1 6 . . . 11 . Leg . | . . . . . . . Wheel . | . . . . . . . Hover 28 | . . . . . 1 27 Flight 1 | . . . . . . 1 Utility 28 | 1 2 1 . . 9 15 Device 9 | . 1 1 . . 1 6 Storage 4 | 1 1 . . . 1 1 Processor 3 | . . . . . 1 2 Hackware 5 | . . . . . 1 4 Protection 7 | . . . . . 5 2 Artifact . | . . . . . . . Weapon 27 | 2 5 . . . 7 13 Energy Gun 4 | 1 2 . . . . 1 Energy Cannon 4 | . . . . . 2 2 Ballistic Gun 8 | 1 3 . . . 4 . Ballistic Cannon 1 | . . . . . . 1 Launcher 6 | . . . . . 1 5 Special Weapon . | . . . . . . . Impact Weapon 1 | . . . . . . 1 Slashing Weapon 2 | . . . . . . 2 Piercing Weapon 1 | . . . . . . 1 Special Melee Weapon . | . . . . . . . Unidentified Prototypes 5 | . . . . . 3 2 Parts Lost 24 | . 6 1 . . 1 16 Power 3 | . 1 . . . . 2 Propulsion 13 | . 2 . . . . 11 Utility 4 | . . 1 . . 1 2 Weapon 4 | . 3 . . . . 1 Highest Loss Streak 5 | . 5 1 . . 1 5 To Critical Strikes . | . . . . . . . Average Slot Usage (%) 93 | . 96 99 100 100 93 86 Engine 9 | . 13 14 14 14 9 2 Core 1 | . . . . . . 3 Treads 19 | . 27 28 28 28 25 . Hover 7 | . . . . . . 27 Device 9 | . 12 13 14 14 6 5 Storage 11 | . 14 14 14 14 12 7 Processor 3 | . . . . . 4 7 Hackware 6 | . . . . . 1 22 Protection 4 | . . . . . 15 . Energy Gun 3 | . 12 . . . . . Energy Cannon 2 | . . . . . 8 . Ballistic Gun 12 | . 15 28 28 28 9 . Naked Turns . | . . . . . . . Heaviest Build 51 | 13 32 32 32 32 51 35 Greatest Support 62 | 20 40 40 40 40 62 36 Greatest Overweight (x) 4 | . 1 . . 1 . 4 Average Overweight (x) . | . . . . . . . Largest Inventory Capacity 15 | 8 15 15 15 15 15 15 Average Capacity 14 | 7 13 15 15 15 15 15 Most Carried 15 | 7 15 15 15 15 15 15 Average Carried 13 | 4 11 15 15 14 14 14 Final Capacity 15 | 8 15 15 15 15 15 15 Final Carried 15 | 7 15 15 15 15 15 15 Class Distribution -------------------- 54% | Mutant 23% | Scavenger-Mutant 21% | Hacker-Mutant Dominant Class ---------------- Mutant | -10/Materials Mutant | -10/Mines Mutant | -10/Exiles Mutant | -9/Mines Scavenger-Mutant | -8/Materials Hacker-Mutant | -7/Factory Resources | -11 -10 -10 -10 -9 -8 -7 ----------- Run | Scr Mat Min Exi Min Mat Fac Matter Collected 2157 | 250 408 41 . 12 636 810 Remotely . | . . . . . . . Salvage Created 3050 | . 689 120 . . 1395 846 Parts 164 | . 44 7 . . 70 43 Haulers Intercepted 6 | . 2 . . . 2 2 Recyclers Shooed 6 | . . 1 . . 2 3 Parts Field Recycled . | . . . . . . . Retrieved Matter . | . . . . . . . Parts Self-Destructed . | . . . . . . . Prevented . | . . . . . . . Kills | -11 -10 -10 -10 -9 -8 -7 ------- Run | Scr Mat Min Exi Min Mat Fac Combat Hostiles Destroyed 60 | . 13 2 . . 27 18 Melee 4 | . . . . . . 4 Guns 23 | . 13 2 . . 7 1 Cannons 15 | . . . . . 15 . AOE 17 | . . . . . 4 13 Classes Destroyed 10 | . 5 1 . . 3 1 Worker 2 | . . . . . 1 1 Hauler 6 | . 2 . . . 2 2 Recycler 6 | . . 1 . . 1 4 Operator 6 | . 3 . . . 2 1 Watcher 7 | . 2 . . . 3 2 Swarmer 21 | . 3 . . . 7 11 Grunt 29 | . 10 2 . . 13 4 Sentry 8 | . . . . . 6 2 Hunter 1 | . . . . . 1 . Programmer 1 | . . . . . . 1 Best Kill Streak 8 | . 3 1 . . 8 8 Combat Bots Only 4 | . 3 1 . . 4 4 Max Kills in Single Turn 3 | . 1 1 . . 3 3 Gunslinging . | . . . . . . . Exploded 3 | . . . . . 3 3 Melee 1 | . . . . . . 1 Uniques/NPCs Destroyed . | . . . . . . . Combat | -11 -10 -10 -10 -9 -8 -7 -------- Run | Scr Mat Min Exi Min Mat Fac Damage Taken 3725 | . 911 55 . 32 1104 1623 Core 726 | . 176 . . . 115 435 Absorbed by Shields 13 | . . . . . . 13 Redirected to Shielding 86 | . . . . . . 86 Regen/Repaired (Parts) 271 | . 205 . . . . 66 Core Remaining (%) 69 | 100 . . . 29 79 . Volleys Fired 222 | . 99 6 . 2 98 17 Largest 2 | . 2 2 . 2 2 1 Hottest 93 | . 70 46 . 46 93 80 Shots Fired 411 | . 186 12 . 4 192 17 Gun 301 | . 186 12 . 4 97 2 Cannon 96 | . . . . . 92 4 Launcher 14 | . . . . . 3 11 Special . | . . . . . . . Kinetic 204 | . 89 12 . 4 97 2 Thermal 193 | . 97 . . . 92 4 Explosive 14 | . . . . . 3 11 Electromagnetic . | . . . . . . . Robot Hit Streak 22 | . 22 8 . 8 22 4 Robot Miss Streak 8 | . 7 1 . 1 8 1 Penetration Max . | . . . . . . . Secondary Targets . | . . . . . . . Shots Hit Robots 302 | . 119 10 . 3 128 42 Core Hits 136 | . 42 7 . 1 52 34 Critical Kills 2 | . . . . . 2 . Critical Parts Destroyed . | . . . . . . . Critical Strikes 15 | . 6 . . . 2 7 Burn 6 | . 6 . . . . . Meltdown 2 | . . . . . 2 . Sever 2 | . . . . . . 2 Impale 5 | . . . . . . 5 Melee Attacks 63 | . . . . . . 63 Impact 2 | . . . . . . 2 Slashing 32 | . . . . . . 32 Piercing 29 | . . . . . . 29 Sneak Attacks 10 | . . . . . . 10 Combat Hostiles 1 | . . . . . . 1 Follow-up Attacks . | . . . . . . . Damage Inflicted 7409 | . 1208 159 . 54 2650 3338 Guns 2354 | . 1206 144 . 49 933 22 Cannons 1485 | . . . . . 1485 . Explosions 1744 | . . . . . 187 1557 Melee 1759 | . . . . . . 1759 Ramming 67 | . 2 15 . 5 45 . Kinetic 1620 | . 494 144 . 49 933 . Thermal 2702 | . 712 . . . 1485 505 Explosive 1261 | . . . . . 187 1074 Electromagnetic . | . . . . . . . Impact 170 | . . . . . . 170 Slashing 806 | . . . . . . 806 Piercing 783 | . . . . . . 783 Highest Corruption . | . . . . . . . Average Corruption . | . . . . . . . Corruption Purged . | . . . . . . . Corruption Blocked . | . . . . . . . Overload Shots . | . . . . . . . Overflow Damage 592 | . . . . . 33 559 Projectiles 33 | . . . . . 33 . Explosions 331 | . . . . . . 331 Melee 228 | . . . . . . 228 Knockbacks 1 | . . . . . 1 . Impact 1 | . . . . . 1 . Kinetic . | . . . . . . . Secondary . | . . . . . . . Self-Inflicted Damage 280 | . . . . . . 280 Shots 5 | . . . . . . 5 Rammed 16 | . 2 3 . 2 9 . Targets Rammed 18 | . 2 4 . 2 10 . Kicked . | . . . . . . . Crushed 2 | . . 1 . . 1 . Highest Temperature 447 | . 274 4 . . 447 68 Average Temperature 93 | . 48 4 . . 138 23 Received Heat Transfer 1329 | . 438 30 . . 540 321 Effects 1 | . . . . . 1 . Damage (minor) 1 | . . . . . 1 . Siege Activations . | . . . . . . . Robots Corrupted . | . . . . . . . Combat Hostiles . | . . . . . . . Parts Fried 1 | . . . . . . 1 Impact Corruptions 1 | . . . . . . 1 Robots Melted 2 | . . . . . 2 . Combat Hostiles 1 | . . . . . 1 . Parts Melted 10 | . 4 . . . 6 . Heat Transferred 5337 | . 2423 . . . 2627 287 Parts Sabotaged . | . . . . . . . Parts Stolen . | . . . . . . . Parts Stripped . | . . . . . . . Power Chain Reactions . | . . . . . . . Missiles Intercepted . | . . . . . . . Alert | -11 -10 -10 -10 -9 -8 -7 ------- Run | Scr Mat Min Exi Min Mat Fac Peak Influence 547 | . 187 86 . 15 547 398 Initial 145 | . . 14 . . 5 145 Average 158 | . 83 42 . 1 285 200 Maximum Alert Level 2 | . . . . . 2 2 Low Security (%) 65 | 100 100 100 . 100 26 45 Level 1 28 | . . . . . 51 54 Level 2 5 | . . . . . 22 . Level 3 . | . . . . . . . Level 4 . | . . . . . . . Level 5 . | . . . . . . . High Security . | . . . . . . . Max Security . | . . . . . . . Squads Dispatched 18 | . 5 . . . 3 10 Investigation 7 | . 1 . . . 1 5 Extermination 2 | . . . . . . 2 Reinforcement 9 | . 4 . . . 2 3 Assault . | . . . . . . . Garrison . | . . . . . . . Intercept . | . . . . . . . Searches Triggered . | . . . . . . . Construction Impeded . | . . . . . . . Haulers Reinforced 1 | . . . . . . 1 Active Scanning Responses . | . . . . . . . Cargo Convoy Interrupts . | . . . . . . . Stealth | -11 -10 -10 -10 -9 -8 -7 --------- Run | Scr Mat Min Exi Min Mat Fac Distress Signals 5 | . 1 . . . 1 3 Communications Jammed . | . . . . . . . Distress Signals . | . . . . . . . Times Spotted 116 | . 30 4 . 2 39 41 Peak Tracking Total 6 | . 3 3 . 2 4 6 Tactical Retreats 11 | . 2 . . 1 2 6 Traps | -11 -10 -10 -10 -9 -8 -7 ------- Run | Scr Mat Min Exi Min Mat Fac Traps Triggered 5 | . 1 . . . 2 2 Indirectly . | . . . . . . . Trap Hack Attempts . | . . . . . . . Triggered . | . . . . . . . Disarmed . | . . . . . . . Reprogrammed . | . . . . . . . Reused . | . . . . . . . Traps Extracted . | . . . . . . . Installed 5 | . . . . 5 . . Triggered . | . . . . . . . Machines | -11 -10 -10 -10 -9 -8 -7 ---------- Run | Scr Mat Min Exi Min Mat Fac Machines Disabled 11 | . . . . . 6 5 Max in Single Turn 4 | . . . . . 1 4 Garrison Access 2 | . . . . . 1 1 Machines Sabotaged . | . . . . . . . Garrisons Compromised . | . . . . . . . Overloaded Fab Kills . | . . . . . . . Hacking | -11 -10 -10 -10 -9 -8 -7 --------- Run | Scr Mat Min Exi Min Mat Fac Machines Accessed 39 | . 4 . 1 1 11 22 Terminals 22 | . 2 . . 1 7 12 Fabricators 4 | . . . . . . 4 Repair Stations 2 | . 1 . . . . 1 Recycling Units 5 | . 1 . . . 1 3 Scanalyzers 3 | . . . . . 2 1 Garrison Access 2 | . . . . . 1 1 Total Hacks 125 | . 13 . 1 3 24 84 Successful 85 | . 10 . 1 2 16 56 Failed 40 | . 3 . . 1 8 28 Catastrophic 5 | . 1 . . . 2 2 Database Lockouts . | . . . . . . . Manual 67 | . 6 . . 4 15 42 Terminals 82 | . 6 . . 3 16 57 Fabricators 12 | . . . . . . 12 Repair Stations 9 | . 6 . . . . 3 Recycling Units 9 | . 1 . . . 1 7 Scanalyzers 9 | . . . . . 6 3 Garrison Access 3 | . . . . . 1 2 Terminal Hacks 38 | . 2 . 1 2 6 27 Record 1 | . . . 1 . . . Part Schematic 7 | . 1 . . . . 6 Robot Analysis 4 | . . . . 2 1 1 Prototype ID Bank 3 | . . . . . . 3 Terminal Index 1 | . . . . . . 1 Fabricator Index 1 | . . . . . . 1 Scanalyzer Index 1 | . . . . . . 1 Alert Level 4 | . . . . . 1 3 Unreport Threat 3 | . . . . . 1 2 Locate Traps 5 | . . . . . 1 4 Security Status 1 | . . . . . . 1 Patrol Status 1 | . . . . . . 1 Recall Extermination 1 | . . . . . . 1 Recall Reinforcements 1 | . . . . . 1 . Hauler Manifests 2 | . 1 . . . 1 . Zone Layout 2 | . . . . . . 2 Fabricator Hacks 5 | . . . . . . 5 Load Schematic 4 | . . . . . . 4 Build 1 | . . . . . . 1 Repair Station Hacks 9 | . 6 . . . . 3 Scan Component 4 | . 3 . . . . 1 Repair 4 | . 3 . . . . 1 Refit 1 | . . . . . . 1 Recycling Unit Hacks 5 | . 1 . . . 1 3 Retrieve Components 5 | . 1 . . . 1 3 Scanalyzer 8 | . . . . . 6 2 Insert Component 4 | . . . . . 3 1 Analyze 4 | . . . . . 3 1 Garrison Access Hacks 2 | . . . . . 1 1 Seal Access 2 | . . . . . 1 1 Unauthorized Hacks 18 | . 1 . . . 2 15 Terminals 11 | . 1 . . . 2 8 Track 1 | . . . . . . 1 Assimilate 2 | . . . . . . 2 Botnet 3 | . . . . . . 3 Operators 5 | . 1 . . . 2 2 Fabricators 4 | . . . . . . 4 Prioritize 1 | . . . . . . 1 Recompile 3 | . . . . . . 3 Repair Stations . | . . . . . . . Recycling Units 3 | . . . . . . 3 Reject 1 | . . . . . . 1 Recyclers 1 | . . . . . . 1 Mask 1 | . . . . . . 1 Scanalyzers . | . . . . . . . Garrison Access . | . . . . . . . Data Cores Recovered 1 | . . . . . . 1 Used . | . . . . . . . Hacking Detections 29 | . 2 . . 1 9 17 Full Trace Events 1 | . . . . . . 1 Feedback Events . | . . . . . . . Feedback Blocked . | . . . . . . . Robot Schematics Acquired . | . . . . . . . Robots Built . | . . . . . . . Authchips . | . . . . . . . Time . | . . . . . . . Total Robot Build Rating . | . . . . . . . Part Schematics Acquired 10 | . 1 . . . 2 7 Parts Built 1 | . . . . . . 1 Authchips . | . . . . . . . Time 33 | . . . . . . 33 Total Part Build Rating 4 | . . . . . . 4 Parts Repaired 4 | . 3 . . . . 1 Time 148 | . 78 . . . . 70 Parts Recycled . | . . . . . . . Recycled Matter . | . . . . . . . Retrieved Matter . | . . . . . . . Retrieved Components 31 | . 10 . . . 10 11 Parts Scanalyzed 3 | . . . . . 2 1 Part Schematics Acquired 3 | . . . . . 2 1 Parts Damaged . | . . . . . . . Bothacking | -11 -10 -10 -10 -9 -8 -7 ------------ Run | Scr Mat Min Exi Min Mat Fac Used RIF Installer . | . . . . . . . Robots Hacked . | . . . . . . . Non-combat . | . . . . . . . Combat . | . . . . . . . Robot Hacks Applied . | . . . . . . . Relay Couplers Released . | . . . . . . . Fabnet Peak Effective % . | . . . . . . . Robots Rewired . | . . . . . . . Allies Hacked . | . . . . . . . Hacks Repelled . | . . . . . . . Allies | -11 -10 -10 -10 -9 -8 -7 -------- Run | Scr Mat Min Exi Min Mat Fac Total Allies 4 | . . 3 . . . 1 Largest Group 3 | . . 3 3 3 . 1 Highest-Rated Group 40 | . . 40 40 40 . 26 Highest-Rated Ally 26 | . . 16 16 16 . 26 Total Orders . | . . . . . . . Ally Attacks 26 | . . 9 . 17 . . Total Damage 273 | . . 97 . 176 . . Kills 7 | . . 3 . 4 . . Allies Corrupted . | . . . . . . . Allies Melted . | . . . . . . . Intel | -11 -10 -10 -10 -9 -8 -7 ------- Run | Scr Mat Min Exi Min Mat Fac Robot Analysis Total 4 | . . . . 2 1 1 Derelict Logs Recovered 1 | . . 1 . . . . Drone Launches . | . . . . . . . Drone Recoveries . | . . . . . . . Exploration | -11 -10 -10 -10 -9 -8 -7 ------------- Run | Scr Mat Min Exi Min Mat Fac Turns Passed 6689 | 76 1644 1014 264 232 1671 1788 Spaces Moved 4355 | 44 729 595 164 136 766 1921 Core 7 | 7 . . . . . . Treads 2427 | 37 729 595 164 136 766 . Legs . | . . . . . . . Wheels . | . . . . . . . Hover 1921 | . . . . . . 1921 Flight . | . . . . . . . Fastest Speed 43 | 50 160 160 160 160 158 43 Average Speed 118 | 142 160 160 160 160 160 66 Slowest Speed 300 | 160 240 160 160 240 163 300 Overloaded Moves . | . . . . . . . Propulsion Burnouts . | . . . . . . . Robots Hopped . | . . . . . . . Cave-ins Triggered . | . . . . . . . Exploration Rate (%) 57 | 3 83 99 51 34 71 61 Regions Visited 6 Branch Regions 3 Pre-discovered Areas 1 | . . . 1 . . . Known Exits Taken 1 | . . . . . 1 . Unknown Exits Taken 5 | 1 1 1 1 1 . . Scrap Searched 3 | . . 1 . 2 . . Spaces Dug 29 | . . . . . . 29 Terrain Destroyed 118 | . . . . . . 118 Melee 25 | . . . . . . 25 Projectile . | . . . . . . . AOE 93 | . . . . . . 93 Terrain Rammed . | . . . . . . . Walls Destroyed . | . . . . . . . Machines Disabled . | . . . . . . . Actions | -11 -10 -10 -10 -9 -8 -7 --------- Run | Scr Mat Min Exi Min Mat Fac Total 5401 | 55 1041 644 166 146 1038 2311 Wait 468 | . 160 35 3 . 96 174 Move 4349 | 43 728 594 163 135 765 1921 Hop . | . . . . . . . Pick Up 76 | 7 25 2 . 1 11 30 Fast Attach 41 | 5 5 1 . . 12 18 Attach 34 | . 7 . . . 4 23 Detach 8 | . . . . . 1 7 Swap 33 | . 2 . . . 13 18 Drop 84 | . 13 2 . 1 28 40 Fire 222 | . 99 6 . 2 98 17 Melee 63 | . . . . . . 63 Ram . | . . . . . . . Kick . | . . . . . . . Crush 18 | . 2 4 . 2 10 . Escape Stasis . | . . . . . . . Rewire . | . . . . . . . Trap 5 | . . . . 5 . . Miscellaneous . | . . . . . . . Route ------- -11/Scrapyard -10/Materials (discovered 3 exits: [*Mat x2] / [*Min]) -10/Mines (discovered 3 exits: [*Mat x2] / *Exi) -10/Exiles -9/Mines -8/Materials (discovered 4 exits: *Fac x3 / Sto) -7/Factory (discovered 3 exits: *Fac x2 / *Low) History --------- Turn | Location | Event 7 | -11/Scrapyard | Discovered new exit (range 14) 77 | -11/Scrapyard | Entered Materials 306 | -10/Materials | Build established: Mutant 502 | -10/Materials | Discovered new exit (range 6) 876 | -10/Materials | Discovered new exit (range 14) 1208 | -10/Materials | Core integrity fell below 50% 1289 | -10/Materials | Lost 5 parts (1p2n2w) 1337 | -10/Materials | Discovered new exit (range 11) 1557 | -10/Materials | Repaired Lgt. Treads 1583 | -10/Materials | Repaired Lgt. Treads 1614 | -10/Materials | Repaired Lgt. Treads 1721 | -10/Materials | Entered Mines 1813 | -10/Mines | Discovered new exit (range 7) 1962 | -10/Mines | Assisted by bots powering up and referring to "LRC-V3" 2106 | -10/Mines | Learned 8 Materials zone layouts 2415 | -10/Mines | Deemed a non-threat by the Exiles lab entrance 2417 | -10/Mines | Discovered new exit (range 5) 2469 | -10/Mines | Received a Rocket Launcher from a helpful Derelict 2494 | -10/Mines | Discovered new exit (range 10) 2735 | -10/Mines | Entered Exiles 2735 | -10/Exiles | Accompanied by 3 allies 2774 | -10/Exiles | Met 8R-AWN 2806 | -10/Exiles | Met EX-HEX 2855 | -10/Exiles | Met EX-BIN 2876 | -10/Exiles | Met EX-DEC 2887 | -10/Exiles | Learned location of Zion (-7) 2977 | -10/Exiles | Discovered new exit (range 12) 2999 | -10/Exiles | Entered Mines 2999 | -9/Mines | Accompanied by 3 allies 3018 | -9/Mines | Met a Derelict bent on vengeance 3020 | -9/Mines | A weapon hastily lodged in a ceiling crevice suddenly fell to the ground 3106 | -9/Mines | Assembled infested the area 3111 | -9/Mines | Assisted by a Guerilla fighting off Assembled 3155 | -9/Mines | Found a hidden stash of uninstalled traps 3219 | -9/Mines | Discovered new exit (range 5) 3231 | -9/Mines | Entered Materials 3231 | -8/Materials | Evolved 4 slots: Propulsion x1, Utility x3 3232 | -8/Materials | Identified exit to Storage 3232 | -8/Materials | Identified exit to Factory 3821 | -8/Materials | Build established: Scavenger-Mutant 4080 | -8/Materials | Discovered exit to Factory (range 10) 4750 | -8/Materials | Build established: Mutant 4840 | -8/Materials | Discovered exit to Factory (range 16) 4902 | -8/Materials | Entered Factory 4902 | -7/Factory | Evolved 2 slots: Propulsion x1, Utility x1 4985 | -7/Factory | Lost 3 parts (2n1u) 5204 | -7/Factory | Build established: Scavenger-Mutant 5300 | -7/Factory | Discovered new exit (range 11) 5391 | -7/Factory | Lost 5 parts (1p4n) 5462 | -7/Factory | Identified exit to Lower Caves 5585 | -7/Factory | Repaired Imp. Airjet 5591 | -7/Factory | Build established: Hacker-Mutant 5747 | -7/Factory | Discovered new exit (range 7) 6001 | -7/Factory | Discovered new exit (range 12) 6025 | -7/Factory | Identified exit to Factory 6416 | -7/Factory | Core integrity fell below 50% 6658 | -7/Factory | Fabricated Imp. Airjet? 6690 | -7/Factory | Self-destructed Last Messages --------------- Rating: 4p Time: 67 Initiate build sequence. >>Trojan(Prioritize) Trojan loaded successfully. Testing... Prioritization routine active. >>Build Building Imp. Airjet... ETC: 33 06625_ ALERT: Unauthorized use of fabrication network. Dispatching investigation squad. 06626_ K-01 Serf cleans the Megafabricator. 06629_ W-25 Informer sends out distress signal. 06630_ K-01 Serf cleans the Megafabricator. 06643_ Slug penetrates Wall. 06658_ >> FABRICATOR: Completed Imp. Airjet? 06674_ Acquired Assault Cannon. 06684_ Slug penetrates Wall. 06689_ Dropped Assault Cannon. Map ----- +----------------------------------------------------+ | ?????????????????????????????????????????????????? | | ?????????????????????????????????????????????????? | | ?????????????????????????????????????????????????? | | ?????????????????????????????????????????????????? | | ?????????????????????????????????????????????????? | | ?????????????????????????????????????????????????? | | ?????????????????????????????????????????????????? | | ?????????????????????????????????????????????????? | | ?????????????????????????????????????????????????? | | ?????????????????????????????????????????????????? | | ?????????????????????????????????????????????????? | | ?????????????????????????????????????????????????? | | ?????????#####???????????????????????????????????? | | ????????# ??????????????????????????????????? | | ??#+##### ??????????????????????????????????? | | ??# ??????????????????????????????????? | | ### ????????????????r?????????????????? | | ""???????????????????????????????????? | | """ "??r?????????????????????????????? | | """ """ ""???????????????????????????????? | | """ ???????????????????????????????? | | """ ?????????????????????????????????? | | "" #????????????????????????????????????? | | "" #????????????????????????????????????? | | ###############??????????????????????? | | """ # ! ! @#??????????????????????? | | """ + #??????????????????????? | | """ # """ """ """ #??????????????????????? | | "" # """ """ """ #??????????????????????? | | "" # """ """ """ #??????????????????????? | | # #??????????????????????? | | ###############??????????????????????? | | ##+########???????????????????????????????? | | # #???????????????????????????????? | | # #???????????????????????????????? | | + #???????????????????????????????? | | ######## ! #???????????????????????????????? | | ???????# !#???????????????????????????????? | | ???????# #???????????????????????????????? | | ???????# #???????????????????????????????? | | ???????# | #???????????????????????????????? | | ???????###########???????????????????????????????? | | ?????????????????????????????????????????????????? | | ?????????????????????????????????????????????????? | | ?????????????????????????????????????????????????? | | ?????????????????????????????????????????????????? | | ?????????????????????????????????????????????????? | | ?????????????????????????????????????????????????? | | ?????????????????????????????????????????????????? | | ?????????????????????????????????????????????????? | +----------------------------------------------------+ Best States ------------- Heat Dissipation 45 Energy Generation 15 Energy Capacity 265 Matter Stores 500 Matter Capacity 500 Sight Range 16 Robot Scan Range 16 Terrain Scan Density 10 Additional Mass Support 9 Armor Coverage 450 Propulsion Shielding 66 Utility Shielding 66 Evasion (%) 56 Targeting Accuracy 8 Recoil Reduction 3 Offensive Hacking 20 Defensive Hacking 10 Authchip Count 3 Item Schematics ----------------- Hcp. Storage Unit | -10/Materials | Hacked Hacking Suite | -8/Materials | Scanalyzed System Shield | -8/Materials | Scanalyzed Adv. Sensor Array | -7/Factory | Hacked Core Analyzer | -7/Factory | Hacked Adv. Trap Extractor | -7/Factory | Hacked Matter Filter | -7/Factory | Hacked Imp. Airjet | -7/Factory | Scanalyzed Enh. Optical Array | -7/Factory | Hacked Greatsword | -7/Factory | Hacked Robot Schematics ------------------ None Fabricated ------------ Imp. Airjet | x1 | -7/Factory Alien Tech Used ----------------- None Achievements -------------- None Challenges ------------ None Game ------ Seed CoilThunderInsulator Manual? 0 Play Time 00:45:50 Cumulative 369.1 hours Start 2022.04.29 @ 11:35:22 End 2022.04.29 @ 12:19:23 Sessions 1 Manual Loads 0 Difficulty Rogue Special Mode None Game No. 376 Rogue 376 Adventurer 0 Explorer 0 Win Type - Total 20 Types 12/2/3/2/0/0/0/1/0 Lore% 91 Gallery% 88 Achievement% 75 Wizard Run 0 Options --------- ASCII 0 Keyboard 0 Movement Arrows Keybinds 0 Fullscreen 1 Font 18/Smallcaps Map View 76x50 Tactical HUD 1 Map Filters NONE Filters NONE Steam 1 RUN: 2a63321c-60a3-4f88-a8b3-7cc6f7ee0099